bitfinex-derivatives/quotes_ETHF0:USTF0_20250602
["timestamp","ask_amount","ask_price","bid_price","bid_amount"]
[1748862399793,29.76733,2481.4,2481.3,3.18e-06]
[1748862401010,29.9563233,2481.4,2481.3,3.18e-06]
[1748862402601,2.08133,2481.4,2481.3,3.18e-06]
[1748862402804,24.73033,2481.4,2481.3,3.18e-06]
[1748862404106,24.72733,2481.4,2481.3,3.18e-06]
[1748862405302,24.72333,2481.4,2481.3,3.18e-06]
[1748862405500,4.83763,2481.4,2481.3,3.18e-06]
[1748862405697,23.45863,2481.4,2481.3,3.18e-06]
[1748862406206,4.83763,2481.4,2481.3,3.18e-06]
[1748862406403,23.45663,2481.4,2481.3,3.18e-06]
[1748862406600,0.80562,2481.5,2481.3,3.18e-06]
[1748862406908,3.33818,2481.7,2481.4,4.0134]
[1748862406909,4.032,2481.7,2481.4,4.0134]
[1748862407108,0.80556,2481.7,2481.5,3.4705]
[1748862407305,0.80556,2481.7,2481.6,1.3437]
[1748862407505,19.42556,2481.7,2481.6,1.3437]
[1748862407810,19.42556,2481.7,2481.6,6.3437]
[1748862408406,5.2214,2482.0,2481.6,6.3437]
[1748862408611,0.8055,2481.8,2481.7,1.3437]
[1748862409103,0.8055,2481.8,2481.7,6.3437]
[1748862409506,0.8055,2481.8,2481.7,1.3437]
[1748862410517,19.4485,2481.8,2481.7,1.3437]
[1748862412132,0.80557,2481.6,2481.5,1.3212]
[1748862412327,4.01337,2481.6,2481.5,0.6817]
[1748862417426,0.80557,2481.6,2481.5,0.6817]
[1748862418335,4.01337,2481.6,2481.5,0.6817]
[1748862421134,0.80563,2481.4,2481.3,3.18e-06]
[1748862422937,3.2078,2481.6,2481.3,1.34200318]
[1748862423236,4.01338,2481.6,2481.4,1.27859106]
[1748862423537,4.01338,2481.6,2481.5,2.62048432]
[1748862423738,4.01338,2481.6,2481.5,7.62048432]
[1748862424436,4.01338,2481.6,2481.5,2.62048432]
[1748862425740,4.01338,2481.6,2481.5,2.62018719]
[1748862425930,22.68538,2481.6,2481.5,2.62018719]
[1748862427642,22.68538,2481.6,2481.5,1.342]
[1748862428249,0.80563,2481.4,2481.3,3.18e-06]
[1748862428540,0.80563,2481.4,2481.3,2.58605545]
[1748862429239,0.80563,2481.4,2481.3,1.30790318]
[1748862429442,0.80563,2481.4,2481.3,2.58555359]
[1748862429741,0.80563,2481.4,2481.3,2.58554017]
[1748862430637,0.80563,2481.4,2481.3,1.30790318]
[1748862432335,0.80563,2481.4,2481.3,3.18e-06]
[1748862432534,4.83663,2481.4,2481.3,3.18e-06]
[1748862432943,5.51493,2481.4,2481.3,3.18e-06]
[1748862433146,8.72273,2481.4,2481.3,3.18e-06]
[1748862435643,4.69173,2481.4,2481.3,3.18e-06]
[1748862435841,8.07243,2481.4,2481.3,3.18e-06]
[1748862436038,22.69543,2481.4,2481.3,1.2786502]
[1748862436345,22.69343,2481.4,2481.3,1.2786502]
[1748862437241,22.69343,2481.4,2481.3,2.6573502]
[1748862437547,22.69343,2481.4,2481.3,1.2786502]
[1748862438144,22.69343,2481.4,2481.3,3.18e-06]
[1748862438145,23.37073,2481.4,2481.3,3.18e-06]
[1748862438347,24.72973,2481.4,2481.3,3.18e-06]
[1748862440144,22.69343,2481.4,2481.3,3.18e-06]
[1748862440838,4.01343,2481.4,2481.3,3.18e-06]
[1748862441051,3.2078,2481.7,2481.3,1.27952714]
[1748862441242,3.2078,2481.7,2481.4,2.62502396]
[1748862441243,0.8056,2481.5,2481.4,2.62502396]
[1748862441437,19.4816,2481.5,2481.4,3.83014651]
[1748862442644,19.4816,2481.5,2481.4,2.62462993]
[1748862444948,19.4826,2481.5,2481.4,2.62462993]
[1748862445252,0.8056,2481.5,2481.4,2.62462993]
[1748862445451,19.4806,2481.5,2481.4,2.62483405]
[1748862445650,0.8056,2481.5,2481.4,2.62483405]
[1748862445853,19.4796,2481.5,2481.4,2.62483405]
[1748862446343,19.4796,2481.5,2481.4,2.6248099]
[1748862446542,0.8056,2481.5,2481.4,2.6248099]
[1748862446748,19.4746,2481.5,2481.4,2.6248099]
[1748862447349,0.8056,2481.5,2481.4,2.6248099]
[1748862447557,19.4716,2481.5,2481.4,2.6248099]
[1748862448153,19.4696,2481.5,2481.4,2.6248099]
[1748862449456,19.4696,2481.5,2481.4,2.62499316]
[1748862449653,19.4626,2481.5,2481.4,2.62499316]
[1748862450056,19.4606,2481.5,2481.4,2.62499316]
[1748862451657,19.4546,2481.5,2481.4,2.62499316]
[1748862452454,19.4546,2481.5,2481.4,3.43062316]
[1748862453255,3.2078,2481.7,2481.4,4.63907316]
[1748862453454,3.2078,2481.7,2481.6,0.80557]
[1748862453849,21.8668,2481.7,2481.6,3.53417]
[1748862454059,21.8668,2481.7,2481.6,4.81423267]
[1748862454451,22.67233,2481.7,2481.6,4.81423267]
[1748862454653,4.01333,2481.7,2481.6,4.81423267]
[1748862454957,22.66833,2481.7,2481.6,4.00866267]
[1748862455657,22.66833,2481.7,2481.6,4.81423267]
[1748862455959,22.66833,2481.7,2481.6,4.00866267]
[1748862457362,22.66833,2481.7,2481.6,3.37143992]
[1748862457561,22.66833,2481.7,2481.6,1.97533992]
[1748862457758,22.66833,2481.7,2481.6,1.27983992]
[1748862457967,0.8056,2481.5,2481.4,3.9]
[1748862458167,0.8056,2481.5,2481.4,5.17987404]
[1748862459861,0.8056,2481.5,2481.4,1.27987404]
[1748862460368,2.1342,2481.5,2481.4,1.27987404]
[1748862461461,0.80563,2481.4,2481.3,3.18e-06]
[1748862461762,0.80563,2481.4,2481.3,1.27992508]
[1748862461763,1.47193,2481.4,2481.3,1.27992508]
[1748862462770,1.47193,2481.4,2481.3,3.18e-06]
[1748862462970,2.79353,2481.4,2481.3,3.18e-06]
[1748862465570,2.79353,2481.4,2481.3,1.27911925]
[1748862466469,2.79353,2481.4,2481.3,3.18e-06]
[1748862472279,0.80563,2481.4,2481.3,3.18e-06]
[1748862472477,19.41663,2481.4,2481.3,3.18e-06]
[1748862473379,19.41863,2481.4,2481.3,1.36480318]
[1748862474279,19.41463,2481.4,2481.3,1.36480318]
[1748862476983,19.41463,2481.4,2481.3,3.18e-06]
[1748862478286,5.80563,2481.4,2481.3,3.18e-06]
[1748862478486,28.45763,2481.4,2481.3,3.18e-06]
[1748862478683,29.80353,2481.4,2481.3,3.18e-06]
[1748862478883,33.02029185,2481.4,2481.3,3.18e-06]
[1748862479079,0.80579,2480.9,2480.8,2.01393]
[1748862479274,8.06159,2480.9,2480.8,1.10184]
[1748862479479,8.06159,2480.9,2480.8,0.21542]
[1748862479680,0.80599,2480.3,2480.2,2.0084]
[1748862479887,22.63479,2480.3,2480.2,3.27920008]
[1748862480888,22.63479,2480.3,2480.2,1.27079152]
[1748862481083,29.06416341,2480.3,2479.5,1.60866141]
[1748862481283,1.2892,2480.2,2479.6,2.5910046]
[1748862481489,18.639,2480.1,2479.7,5.2849846]
[1748862481680,18.639,2480.0,2479.8,1.25205568]
[1748862481880,7.2558,2480.3,2479.9,3.24032225]
[1748862482081,1.04522478,2480.4,2480.0,1.24887132]
[1748862482287,19.04592478,2480.4,2480.1,2.56887132]
[1748862482487,0.80599,2480.3,2480.2,2.61427132]
[1748862482786,19.85189478,2480.4,2480.2,2.61427132]
[1748862482985,19.44897,2480.4,2480.3,1.3654]
[1748862484693,18.643,2480.4,2480.3,1.3654]
[1748862484993,19.44896,2480.4,2480.3,1.3654]
[1748862486285,20.10736,2480.4,2480.3,1.3654]
[1748862487586,0.80602,2480.2,2480.1,0.6421]
[1748862487789,0.80602,2480.2,2480.1,3.19230266]
[1748862487997,0.80606,2480.1,2480.0,0.00604571]
[1748862488186,19.44706,2480.1,2480.0,0.00604571]
[1748862488386,19.44706,2480.1,2480.0,1.26744571]
[1748862490893,19.44706,2480.1,2480.0,0.00604571]
[1748862491598,3.2078,2480.2,2480.0,0.00604571]
[1748862491897,3.2078,2480.2,2480.0,1.39954571]
[1748862492100,3.21384571,2480.5,2480.0,5.24684571]
[1748862492301,0.00604571,2480.5,2480.4,0.80596]
[1748862492595,0.00604571,2480.5,2480.4,2.0488]
[1748862492787,0.00604571,2480.5,2480.4,4.14280991]
[1748862493192,0.00604571,2480.5,2480.4,3.33684991]
[1748862493390,0.00604571,2480.5,2480.4,4.14280991]
[1748862493589,0.00604571,2480.5,2480.4,9.14280991]
[1748862494097,0.00604571,2480.5,2480.4,10.75147132]
[1748862494693,0.00604571,2480.5,2480.4,12.03971564]
[1748862494893,0.00604571,2480.5,2480.4,14.81766573]
[1748862495093,0.00604571,2480.5,2480.4,13.20900432]
[1748862495596,0.00604571,2480.5,2480.4,14.81766573]
[1748862498701,0.00604571,2480.5,2480.4,14.81791737]
[1748862499799,0.00604571,2480.5,2480.4,13.20925596]
[1748862500096,0.00604571,2480.5,2480.4,4.14325596]
[1748862500304,0.00604571,2480.5,2480.4,2.85476]
[1748862500498,0.81197571,2480.5,2480.4,4.14339537]
[1748862500699,0.81197571,2480.5,2480.4,41.34339537]
[1748862500894,0.00604571,2480.5,2480.4,41.34339537]
[1748862501201,0.00604571,2480.5,2480.4,4.14339537]
[1748862501501,0.81197571,2480.5,2480.4,2.85476]
[1748862501902,0.81197571,2480.5,2480.4,6.04596]
[1748862502101,0.81197571,2480.5,2480.4,7.33454826]
[1748862502405,0.00604571,2480.5,2480.4,7.33454826]
[1748862504201,3.2078,2481.0,2480.6,2.0147]
[1748862504396,3.2078,2480.7,2480.4,3.8465]
[1748862504599,0.8059,2480.6,2480.5,0.80591]
[1748862504908,0.80589,2480.6,2480.5,3.48961153]
[1748862505199,4.01368,2480.7,2480.5,3.48960426]
[1748862505502,0.80589,2480.6,2480.5,1.3944]
[1748862505808,0.80589,2480.6,2480.5,2.68407702]
[1748862507105,0.80589,2480.6,2480.5,3.49000702]
[1748862507608,0.80589,2480.6,2480.5,2.68407702]
[1748862507800,0.80589,2480.6,2480.5,3.49000702]
[1748862508103,4.64578,2480.7,2480.5,2.68407702]
[1748862508301,4.64578,2480.7,2480.6,2.09610249]
[1748862508607,3.2078,2480.7,2480.6,0.80589]
[1748862508804,0.00604571,2480.8,2480.7,0.80586]
[1748862509001,0.00604571,2480.8,2480.7,2.75126]
[1748862509306,0.81187571,2480.8,2480.7,3.23526667]
[1748862509698,0.81187571,2480.8,2480.7,4.04112667]
[1748862510207,0.81187571,2480.8,2480.7,3.23526667]
[1748862511112,0.81187571,2480.8,2480.7,7.81446667]
[1748862511510,0.81187571,2480.8,2480.7,8.62032667]
[1748862511809,0.81187571,2480.8,2480.7,7.81446667]
[1748862512304,0.00604571,2480.8,2480.7,8.62032667]
[1748862512807,3.2078,2481.0,2480.9,0.8058]
[1748862513108,4.01356,2481.0,2480.9,2.09566667]
[1748862513303,4.01356,2481.0,2480.9,2.09536427]
[1748862513510,19.48676,2481.1,2481.0,0.80576]
[1748862513809,4.01953571,2481.3,2481.2,0.8057]
[1748862514009,0.81173571,2481.3,2481.2,2.09526427]
[1748862514305,0.81173571,2481.3,2481.2,1.28956427]
[1748862515315,0.81173571,2481.3,2481.2,2.09526427]
[1748862516010,0.00604571,2481.3,2481.2,2.09526427]
[1748862517007,0.00604571,2481.3,2481.2,4.89926427]
[1748862517208,0.00604571,2481.3,2481.2,4.8975945]
[1748862521111,0.00604571,2481.3,2481.2,4.89789921]
[1748862521316,0.00604571,2481.3,2481.2,6.19629921]
[1748862521717,0.00604571,2481.3,2481.2,43.39629921]
[1748862524918,3.2078,2482.7,2481.2,49.19437891]
[1748862525215,0.6378,2482.6,2482.5,0.80528]
[1748862525414,1.44304,2482.6,2482.5,0.80528]
[1748862525621,0.80528,2482.5,2482.4,2.18599]
[1748862525817,0.80528,2482.5,2482.4,2.66622364]
[1748862526118,0.80534,2482.3,2482.2,4.85840571]
[1748862526318,0.80534,2482.3,2482.2,6.14400274]
[1748862526913,0.80529,2482.5,2482.4,0.80528]
[1748862527107,19.3058,2482.6,2482.2,4.05304571]
[1748862527324,0.80533,2482.4,2482.3,2.186]
[1748862527720,0.80529,2482.5,2482.4,0.80528]
[1748862528219,0.6378,2482.6,2482.5,0.80528]
[1748862529017,0.6378,2482.6,2482.5,2.07258]
[1748862529217,1.44304,2482.6,2482.5,2.07258]
[1748862529422,0.6378,2482.6,2482.5,2.07258]
[1748862529622,3.21183457,2482.7,2482.6,0.80524]
[1748862531524,0.80524,2482.6,2482.5,2.07255]
[1748862532521,2.01233,2483.6,2482.5,7.54673593]
[1748862532720,0.805,2483.4,2483.3,3.2078]
[1748862533424,2.1602,2483.4,2483.3,3.2078]
[1748862533720,1.3552,2483.4,2483.3,0.80502]
[1748862533915,1.359,2483.5,2483.4,0.80498]
[1748862534116,0.80491,2483.7,2483.6,0.80489]
[1748862534722,1.3257,2483.8,2483.7,0.80489]
[1748862534922,19.9949,2484.0,2483.6,3.2078]
[1748862535127,0.80487,2483.8,2483.7,0.80485]
[1748862535820,0.80482,2483.9,2483.8,0.80486]
[1748862536221,0.80474,2484.2,2484.1,0.80473]
[1748862536827,2.13044,2484.2,2484.1,0.80473]
[1748862537429,0.80476,2484.1,2484.0,3.2078]
[1748862537628,2.06406,2484.1,2484.0,3.2078]
[1748862537928,2.06406,2484.1,2484.0,7.0742]
[1748862538335,0.80475,2484.2,2484.1,0.80476]
[1748862538625,0.80476,2484.1,2484.0,7.87896]
[1748862539031,0.80476,2484.1,2484.0,7.0742]
[1748862539221,0.80476,2484.1,2484.0,7.87899]
[1748862539527,2.06406,2484.1,2484.0,7.87899]
[1748862539828,2.06406,2484.1,2484.0,7.0742]
[1748862540128,2.06406,2484.1,2484.0,3.8664]
[1748862540525,7.06406,2484.1,2484.0,3.8664]
[1748862541221,7.06406,2484.1,2484.0,0.5507283]
[1748862542226,7.06406,2484.1,2483.4,3.21384571]
[1748862542227,0.8049,2483.7,2483.5,0.80493]
[1748862542431,0.8049,2483.7,2483.6,3.32]
[1748862543524,2.1342,2483.7,2483.6,3.32]
[1748862543824,0.80493,2483.6,2483.4,4.01880571]
[1748862544125,0.80493,2483.6,2483.4,5.29020571]
[1748862544324,0.80493,2483.6,2483.4,2.08240571]
[1748862544526,0.80493,2483.6,2483.4,5.29020571]
[1748862544728,0.80493,2483.6,2483.4,4.48524571]
[1748862544932,0.80493,2483.6,2483.4,5.29020571]
[1748862545927,0.80492,2483.6,2483.5,0.80494]
[1748862546123,0.80495,2483.5,2483.4,4.48524571]
[1748862546328,0.80495,2483.5,2483.4,3.21384571]
[1748862547723,0.80495,2483.5,2483.4,0.00604571]
[1748862548232,4.5371,2483.7,2483.4,0.00604571]
[1748862548429,18.697,2483.6,2483.4,0.00604571]
[1748862548732,0.80495,2483.5,2483.4,0.00604571]
[1748862550421,0.80495,2483.5,2483.4,1.39014571]
[1748862551227,2.01182,2484.2,2483.7,0.80486]
[1748862551429,0.80492,2483.6,2483.5,5.48995]
[1748862551629,0.80492,2483.6,2483.5,6.87405]
[1748862552629,0.80492,2483.6,2483.5,10.83725]
[1748862553336,0.80492,2483.6,2483.5,8.07168545]
[1748862554425,0.80492,2483.6,2483.5,7.26673545]
[1748862554830,0.80492,2483.6,2483.5,7.26949523]
[1748862555029,0.80492,2483.6,2483.5,5.9883]
[1748862555235,0.80492,2483.6,2483.5,8.46608788]
[1748862555432,0.80492,2483.6,2483.5,7.82508788]
[1748862556033,0.80492,2483.6,2483.5,3.86188788]
[1748862557333,1.4923,2483.7,2483.6,0.80492]
[1748862557639,1.4923,2483.7,2483.6,3.9472991]
[1748862557843,1.4923,2483.7,2483.6,3.1423791]
[1748862558742,1.4923,2483.7,2483.6,3.14605158]
[1748862559131,9.7001,2483.7,2483.6,1.28414216]
[1748862559330,0.80495,2483.5,2483.4,2.00284571]
[1748862559533,0.80495,2483.5,2483.4,5.46266237]
[1748862559830,1.49231,2483.7,2483.4,5.85699179]
[1748862560036,18.705,2483.6,2483.5,3.28779608]
[1748862560235,18.705,2483.6,2483.5,5.31359608]
[1748862561031,19.3914,2483.7,2483.6,0.80492]
[1748862561241,19.3914,2483.7,2483.6,3.28776608]
[1748862561937,20.19632,2483.7,2483.6,2.48284608]
[1748862562542,20.19632,2483.7,2483.6,5.69064608]
[1748862562842,20.19632,2483.7,2483.6,5.68897436]
[1748862564441,20.79962,2483.7,2483.6,5.68897436]
[1748862564639,20.79962,2483.7,2483.6,4.48718176]
[1748862565043,20.79962,2483.7,2483.6,5.68897436]
[1748862565341,25.79962,2483.7,2483.6,1.27938176]
[1748862565536,0.80495,2483.5,2483.4,2.00284571]
[1748862565731,8.10075,2483.5,2483.4,2.29369419]
[1748862565937,13.10075,2483.5,2483.4,1.01535571]
[1748862566136,13.10075,2483.5,2483.4,5.71e-06]
[1748862566545,0.80518,2482.8,2482.7,5.20930862]
[1748862566744,23.62418,2482.8,2482.7,4.08278374]
[1748862566938,28.62418,2482.8,2482.7,4.08278374]
[1748862567238,0.80521,2482.7,2482.6,4.41059749]
[1748862567450,2.73001,2482.7,2482.6,4.41059749]
[1748862567942,2.73001,2482.7,2482.6,3.2078]
[1748862569944,1.44141,2482.7,2482.6,3.2078]
[1748862570248,0.81117571,2483.0,2482.8,0.80517]
[1748862570449,0.81117571,2483.0,2482.9,5.2116]
[1748862570639,0.81117571,2483.0,2482.9,6.48521886]
[1748862570840,0.00604571,2483.0,2482.9,6.48521886]
[1748862571038,18.74604571,2483.0,2482.9,7.29036886]
[1748862571338,0.00604571,2483.0,2482.9,7.29036886]
[1748862572135,0.00604571,2483.0,2482.9,6.48521886]
[1748862572136,0.81115571,2483.0,2482.9,6.48521886]
[1748862573846,0.81115571,2483.0,2482.9,5.2116]
[1748862574439,0.00604571,2483.0,2482.9,6.01675]
[1748862574648,0.81115571,2483.0,2482.9,7.32055431]
[1748862574850,0.00604571,2483.0,2482.9,7.32055431]
[1748862575347,0.81115571,2483.0,2482.9,7.32055431]
[1748862575845,0.81115571,2483.0,2482.9,6.51540431]
[1748862577047,0.81115571,2483.0,2482.9,10.51140431]
[1748862578151,0.81115571,2483.0,2482.9,9.2076]
[1748862578351,0.81115571,2483.0,2482.9,10.51108751]
[1748862578547,0.00604571,2483.0,2482.9,11.31623751]
[1748862579053,0.80504,2483.3,2483.2,0.80501]
[1748862579349,19.53204,2483.3,2483.2,2.12622875]
[1748862579542,18.727,2483.3,2482.9,10.40633057]
[1748862579853,0.80511,2483.1,2483.0,2.1263109]
[1748862580044,0.80511,2483.1,2483.0,3.4600109]
[1748862580648,0.80511,2483.1,2483.0,2.6549209]
[1748862581446,0.80511,2483.1,2483.0,3.4600309]
[1748862581756,0.80511,2483.1,2483.0,6.6678309]
[1748862582144,0.80511,2483.1,2483.0,6.66835891]
[1748862582947,0.80511,2483.1,2483.0,10.30915891]
[1748862583160,0.80507,2483.2,2483.1,0.80505]
[1748862583350,19.52707,2483.2,2483.1,2.12679891]
[1748862584249,0.80505,2483.3,2483.2,0.80503]
[1748862584448,19.52105,2483.3,2483.2,2.12163]
[1748862584646,19.52102,2483.3,2483.2,2.12163]
[1748862584847,18.722,2483.3,2483.2,2.12165]
[1748862585355,18.719,2483.3,2483.2,2.12165]
[1748862585549,19.52402,2483.3,2483.2,2.12165]
[1748862585853,18.719,2483.3,2483.2,3.44417249]
[1748862586055,19.52402,2483.3,2483.2,2.12165]
[1748862586255,19.52402,2483.3,2483.2,3.44429812]
[1748862586459,19.52402,2483.3,2483.2,2.63924812]
[1748862586653,19.52402,2483.3,2483.2,1.3166]
[1748862587258,19.52402,2483.3,2483.2,2.6396056]
[1748862587659,19.52402,2483.3,2483.2,1.3166]
[1748862588360,20.12802,2483.3,2483.2,1.3166]
[1748862588852,20.12802,2483.3,2483.2,2.12165]
[1748862589257,19.323,2483.3,2483.2,2.12165]
[1748862590162,20.12802,2483.3,2483.2,3.44472535]
[1748862590462,20.12802,2483.3,2483.2,3.44472325]
[1748862590759,20.12802,2483.3,2483.2,2.12165]
[1748862590960,20.12802,2483.3,2483.2,3.44486122]
[1748862591771,20.12802,2483.3,2483.2,2.63981122]
[1748862592060,0.604,2483.3,2483.2,3.44486122]
[1748862592270,0.80488,2483.8,2483.7,0.80489]
[1748862592558,19.50488,2483.8,2483.7,0.80489]
[1748862592960,19.50488,2483.8,2483.7,2.81099]
[1748862593165,19.50488,2483.8,2483.7,2.0061]
[1748862594361,19.50488,2483.8,2483.7,2.81099]
[1748862594559,0.80488,2483.8,2483.7,2.81099]
[1748862594767,19.49388,2483.8,2483.7,4.1348732]
[1748862595563,0.6029,2483.9,2483.8,0.80486]
[1748862595758,0.6029,2483.9,2483.8,3.52277156]
[1748862595961,19.2879,2483.9,2483.8,3.52277156]
[1748862596157,1.40772,2483.9,2483.8,3.52277156]
[1748862596359,20.09172,2483.9,2483.8,3.52277156]
[1748862597069,20.08672,2483.9,2483.8,3.52277156]
[1748862597970,20.08672,2483.9,2483.8,2.71791156]
[1748862600566,20.08672,2483.9,2483.8,1.3942]
[1748862600768,20.08672,2483.9,2483.8,2.71858453]
[1748862601067,20.08672,2483.9,2483.8,2.71889706]
[1748862602165,19.2819,2483.9,2483.8,3.52375706]
[1748862602359,1.40772,2483.9,2483.8,2.71889706]
[1748862602673,0.6029,2483.9,2483.8,3.52375706]
[1748862602864,0.6029,2483.9,2483.8,2.19906]
[1748862603065,4.098,2484.7,2484.0,2.01195]
[1748862603272,8.05542,2484.7,2484.3,0.80467]
[1748862603470,0.80473,2484.2,2484.1,7.25680612]
[1748862603671,0.80473,2484.2,2484.1,8.06087151]
[1748862604062,1.2791,2484.6,2484.1,9.26800151]
[1748862604364,19.46965,2484.5,2484.4,0.80465]
[1748862604967,0.6669,2484.7,2484.4,0.80465]
[1748862604968,0.80458,2484.7,2484.6,0.8046]
[1748862605174,0.8046,2484.6,2484.5,2.75932]
[1748862605370,0.8046,2484.6,2484.5,1.9547]
[1748862605871,0.8046,2484.6,2484.5,3.28206681]
[1748862606070,0.8046,2484.6,2484.5,4.08669681]
[1748862606275,1.47999,2484.7,2484.5,4.08669681]
[1748862606577,0.8046,2484.6,2484.5,2.75933]
[1748862606774,1.47999,2484.7,2484.5,4.08587185]
[1748862607071,1.47999,2484.7,2484.5,1.9547]
[1748862607273,0.8046,2484.6,2484.5,1.9547]
[1748862607672,0.6754,2484.7,2484.6,0.8046]
[1748862608069,0.80451,2484.9,2484.7,0.80456]
[1748862608271,0.643,2485.0,2484.9,0.8045]
[1748862608466,19.308,2485.0,2484.9,0.8045]
[1748862608975,0.8045,2484.9,2484.8,1.3098]
[1748862609474,19.308,2485.0,2484.8,0.80453]
[1748862609775,19.308,2485.0,2484.7,4.01234]
[1748862609776,0.80451,2484.9,2484.7,4.01234]
[1748862610481,0.80451,2484.9,2484.8,3.3176]
[1748862610776,0.80451,2484.9,2484.8,4.12213]
[1748862611078,0.80451,2484.9,2484.8,3.3176]
[1748862611577,2.11091,2484.9,2484.8,4.12213]
[1748862612063,2.11091,2484.9,2484.8,3.3176]
[1748862612875,1.3064,2484.9,2484.7,4.01236]
[1748862613384,0.80453,2484.8,2484.7,3.2078]
[1748862614073,1.3064,2484.9,2484.7,3.2078]
[1748862614074,0.80452,2484.9,2484.7,3.2078]
[1748862614377,0.80452,2484.9,2484.7,4.01234]
[1748862614577,0.80453,2484.8,2484.7,3.2078]
[1748862615579,1.3626,2484.9,2484.7,3.2078]
[1748862615976,2.16712,2484.9,2484.7,3.2078]
[1748862616277,0.80453,2484.8,2484.7,3.2078]
[1748862618182,19.43053,2484.8,2484.7,4.01236]
[1748862618372,19.43053,2484.8,2484.7,4.5842]
[1748862618980,19.43053,2484.8,2484.7,5.38876]
[1748862619375,18.626,2484.8,2484.7,5.38876]
[1748862619575,0.80452,2484.9,2484.8,0.80453]
[1748862619576,0.87519789,2484.9,2484.8,0.80453]
[1748862619782,0.87519789,2484.9,2484.8,2.14183]
[1748862619980,0.87519789,2484.9,2484.8,1.3373]
[1748862620688,0.8045,2484.9,2484.8,1.3373]
[1748862622382,0.8045,2484.9,2484.8,2.14183]
[1748862624180,0.8045,2484.9,2484.8,3.46759264]
[1748862624382,0.8045,2484.9,2484.8,2.14181]
[1748862624774,20.05248,2485.0,2484.9,0.8045]
[1748862624984,19.40948,2485.0,2484.9,0.8045]
[1748862625183,19.40948,2485.0,2484.9,2.82461268]
[1748862626881,0.80445,2485.2,2485.1,0.8044]
[1748862627085,19.39945,2485.2,2485.1,0.8044]
[1748862627280,0.80445,2485.2,2485.1,2.13083523]
[1748862627485,19.39845,2485.2,2485.1,2.13083523]
[1748862627786,19.39845,2485.2,2485.1,2.13071909]
[1748862629180,20.79255,2485.2,2485.1,1.32631909]
[1748862629382,20.79255,2485.2,2485.1,2.13074909]
[1748862629978,2.19855,2485.2,2485.1,2.13074909]
[1748862630282,20.78155,2485.2,2485.1,2.13074909]
[1748862630881,0.80443,2485.1,2485.0,1.68546338]
[1748862631090,10.11723,2485.1,2485.0,1.68546338]
[1748862631277,11.06723,2485.1,2485.0,1.68546338]
[1748862631484,33.73323,2485.1,2485.0,1.68546338]
[1748862631781,5.2628,2485.1,2485.0,1.68546338]
[1748862631980,21.48443,2485.1,2485.0,1.68546338]
[1748862632281,0.80463,2484.5,2484.4,1.19998745]
[1748862632486,0.80469,2484.3,2484.2,3.60511334]
[1748862632685,19.45669,2484.3,2484.2,3.60511334]
[1748862632882,19.45669,2484.3,2484.2,1.19998745]
[1748862633184,0.6968,2484.4,2484.3,0.80469]
[1748862633379,5.2336,2484.9,2484.7,0.80454]
[1748862633577,0.6968,2484.8,2484.7,0.80454]
[1748862633980,3.8752,2485.3,2484.6,6.41926745]
[1748862634190,19.3648,2485.2,2484.9,3.2078]
[1748862634389,0.80446,2485.1,2484.9,3.2078]
[1748862634583,0.80444,2485.1,2484.9,4.01229]
[1748862634886,0.80444,2485.1,2485.0,1.306]
[1748862635285,3.2078,2485.6,2485.0,1.306]
[1748862635490,0.6991,2485.5,2485.2,0.80439]
[1748862635793,0.80436,2485.4,2485.2,0.8044]
[1748862636081,0.80437,2485.3,2485.2,1.20055856]
[1748862636288,0.8044,2485.2,2485.1,0.80443]
[1748862636487,0.8044,2485.2,2485.1,1.19998072]
[1748862637683,0.87507789,2485.3,2485.1,1.19998072]
[1748862637884,0.80437,2485.3,2485.2,2.1129]
[1748862639391,0.80421,2485.8,2485.7,3.2078]
[1748862639988,0.80421,2485.8,2485.7,5.3006]
[1748862640392,0.80421,2485.8,2485.7,2.0928]
[1748862640584,4.01201,2485.8,2485.7,2.0928]
[1748862640789,9.01201,2485.8,2485.7,2.0928]
[1748862641293,10.32191,2485.8,2485.7,2.0928]
[1748862642891,10.32191,2485.8,2485.5,0.00604571]
[1748862642892,0.80427,2485.6,2485.5,0.00604571]
[1748862646989,1.46697,2485.6,2485.5,0.00604571]
[1748862647597,20.12097,2485.6,2485.5,0.00604571]
[1748862647893,1.46697,2485.6,2485.5,0.00604571]
[1748862648197,20.12297,2485.6,2485.5,0.00604571]
[1748862648494,20.12297,2485.6,2485.5,1.35664571]
[1748862649194,20.12297,2485.6,2485.5,0.00604571]
[1748862650801,1.46697,2485.6,2485.5,0.00604571]
[1748862651002,20.11697,2485.6,2485.5,0.00604571]
[1748862651203,1.46697,2485.6,2485.5,0.00604571]
[1748862651395,20.11597,2485.6,2485.5,0.00604571]
[1748862651594,20.11597,2485.6,2485.5,1.39314571]
[1748862652102,20.11197,2485.6,2485.5,1.39314571]
[1748862652409,20.11197,2485.6,2485.5,0.00604571]
[1748862653893,2.01049,2485.9,2485.5,1.32285928]
[1748862654090,0.80421,2485.8,2485.7,3.2078]
[1748862654290,1.40711,2485.8,2485.7,5.86187526]
[1748862655204,1.40711,2485.8,2485.7,4.5453]
[1748862656502,1.40711,2485.8,2485.7,1.3375]
[1748862657708,1.40711,2485.8,2485.7,3.45808832]
[1748862657911,1.40711,2485.8,2485.7,5.86164832]
[1748862658210,1.40711,2485.8,2485.7,6.66588832]
[1748862658812,0.6029,2485.8,2485.7,6.66588832]
[1748862659013,0.80414,2486.1,2486.0,0.80414]
[1748862659207,3.2078,2486.9,2486.1,2.01028]
[1748862659413,3.2078,2486.9,2486.4,3.2078]
[1748862659614,0.80396,2486.6,2486.5,2.15307]
[1748862659912,8.0279,2487.1,2486.5,2.66544832]
[1748862659913,0.6617,2487.1,2486.5,2.66544832]
[1748862660111,19.2977,2487.1,2486.7,3.2078]
[1748862660315,0.80384,2487.0,2486.9,0.80384]
[1748862660520,0.80382,2487.1,2487.0,0.80381]
[1748862660721,0.80382,2487.1,2487.0,5.36071]
[1748862661017,0.80382,2487.1,2487.0,4.5569]
[1748862661208,0.80382,2487.1,2487.0,5.87412705]